fUST/lending_fUST_20250427
["ID","MTS","AMOUNT","RATE_DAILY","PERIOD"]
[359116186,1745713850309,-151.0,0.0001726,2]
[359116187,1745713850319,-292.29,0.0001726,2]
[359116188,1745713850329,-400.0,0.0001726,2]
[359116189,1745713850339,-400.0,0.0001726,2]
[359116190,1745713850349,-1414.672906,0.0001726,2]
[359116191,1745713850359,-1414.672906,0.0001726,2]
[359116192,1745713850368,-400.0,0.0001726,2]
[359116193,1745713850378,-151.0,0.0001726,2]
[359116194,1745713850388,-400.0,0.0001726,2]
[359116195,1745713850398,-200.0,0.0001726,2]
[359116197,1745713850408,-151.0,0.0001726,2]
[359116199,1745713850417,-200.0,0.0001726,2]
[359116201,1745713850426,-200.0,0.0001726,2]
[359116203,1745713850436,-400.0,0.0001726,2]
[359116205,1745713850445,-500.0,0.0001726,2]
[359116207,1745713850455,-522.01,0.0001726,2]
[359116209,1745713850465,-400.0,0.0001726,2]
[359116211,1745713850474,-200.0,0.0001726,2]
[359116213,1745713850484,-151.0,0.0001726,2]
[359116215,1745713850493,-151.0,0.0001726,2]
[359116217,1745713850503,-200.0,0.0001726,2]
[359116219,1745713850512,-158.03,0.0001726,2]
[359116221,1745713850522,-400.0,0.0001726,2]
[359116223,1745713850533,-400.0,0.0001726,2]
[359116225,1745713850543,-500.0,0.0001726,2]
[359116227,1745713850552,-200.0,0.0001726,2]
[359116229,1745713850561,-400.0,0.0001726,2]
[359116231,1745713850571,-400.0,0.0001726,2]
[359116234,1745713850581,-400.0,0.0001726,2]
[359116236,1745713850591,-400.0,0.0001726,2]
[359116238,1745713850600,-500.0,0.0001726,2]
[359116240,1745713850610,-400.0,0.0001726,2]
[359116242,1745713850620,-400.0,0.0001726,2]
[359116243,1745713850629,-400.0,0.0001726,2]
[359116245,1745713850638,-400.0,0.0001726,2]
[359116247,1745713850647,-400.0,0.0001726,2]
[359116249,1745713850658,-400.0,0.0001726,2]
[359116252,1745713850667,-302.16,0.0001726,2]
[359116253,1745713850677,-198.21,0.0001726,2]
[359116255,1745713850686,-202.12,0.0001726,2]
[359116256,1745713850696,-500.0,0.0001726,2]
[359116257,1745713850705,-1025.32,0.0001726,2]
[359116258,1745713850715,-500.0,0.0001726,2]
[359116259,1745713850725,-500.0,0.0001726,2]
[359116260,1745713850735,-400.0,0.0001726,2]
[359116261,1745713850745,-154.35,0.0001726,2]
[359116262,1745713850755,-500.0,0.0001726,2]
[359116263,1745713850764,-400.0,0.0001726,2]
[359116264,1745713850774,-400.0,0.0001726,2]
[359116265,1745713850783,-500.0,0.0001726,2]
[359116266,1745713850793,-400.0,0.0001726,2]
[359116267,1745713850803,-400.0,0.0001726,2]
[359116268,1745713850813,-400.0,0.0001726,2]
[359116269,1745713850822,-237.371218,0.0001726,2]
[359116270,1745713850831,-493.52,0.0001726,2]
[359116271,1745713850841,-237.371218,0.0001726,2]
[359116272,1745713850850,-490.81,0.0001726,2]
[359116273,1745713850860,-400.0,0.0001726,2]
[359116274,1745713850869,-200.0,0.0001726,2]
[359116275,1745713850882,-180.98,0.0001726,2]
[359116276,1745713850892,-200.0,0.0001726,2]
[359116277,1745713850901,-353.96,0.0001726,2]
[359116278,1745713850911,-467.38,0.0001726,2]
[359116279,1745713850922,-200.0,0.0001726,2]
[359116280,1745713850932,-400.0,0.0001726,2]
[359116281,1745713850942,-200.0,0.0001726,2]
[359116282,1745713850952,-628.35,0.0001726,2]
[359116283,1745713850962,-469.64,0.0001726,2]
[359116284,1745713850972,-200.0,0.0001726,2]
[359116286,1745713850982,-400.0,0.0001726,2]
[359116288,1745713850992,-400.0,0.0001726,2]
[359116289,1745713851001,-1100.88,0.0001726,2]
[359116291,1745713851011,-231.19900111,0.0001726,2]
[359116292,1745713851021,-1313.68,0.0001726,2]
[359116293,1745713851030,-465.21,0.0001726,2]
[359116294,1745713851041,-500.0,0.0001726,2]
[359116295,1745713851050,-827.09826121,0.0001734,2]
[359116296,1745713851060,-205.37630788,0.000175,4]
[359116297,1745713851070,-366.04,0.00017534,2]
[359116298,1745713851080,-200.0,0.00017534,2]
[359116299,1745713851090,-400.0,0.00017534,2]
[359116300,1745713851099,-200.0,0.00017534,2]
[359116301,1745713851109,-151.0,0.00017534,2]
[359116302,1745713851119,-400.0,0.00017534,2]
[359116303,1745713851129,-200.0,0.00017534,2]
[359116304,1745713851138,-200.0,0.00017534,2]
[359116305,1745713851148,-151.0,0.00017534,2]
[359116306,1745713851158,-400.0,0.00017534,2]
[359116307,1745713851167,-445.47,0.00017534,2]
[359116308,1745713851176,-423.15,0.00017534,2]
[359116309,1745713851185,-400.0,0.00017534,2]
[359116310,1745713851195,-400.0,0.00017534,2]
[359116311,1745713851215,-328.13,0.00017534,2]
[359116312,1745713851227,-200.0,0.00017534,2]
[359116313,1745713851238,-200.0,0.00017534,2]
[359116314,1745713851248,-400.0,0.00017534,2]
[359116315,1745713851258,-200.0,0.00017534,2]
[359116316,1745713851268,-200.0,0.00017534,2]
[359116317,1745713851278,-218.42,0.00017534,2]
[359116318,1745713851288,-400.0,0.00017534,2]
[359116319,1745713851298,-317.74,0.00017534,2]
[359116320,1745713851308,-1025.32,0.00017534,2]
[359116321,1745713851318,-400.0,0.00017534,2]
[359116322,1745713851328,-400.0,0.00017534,2]
[359116323,1745713851338,-200.0,0.00017534,2]
[359116324,1745713851348,-400.0,0.00017534,2]
[359116325,1745713851359,-400.0,0.00017534,2]
[359116326,1745713851369,-400.0,0.00017534,2]
[359116327,1745713851379,-493.52,0.00017534,2]
[359116328,1745713851390,-490.81,0.00017534,2]
[359116329,1745713851400,-400.0,0.00017534,2]
[359116330,1745713851410,-467.38,0.00017534,2]
[359116331,1745713851420,-400.0,0.00017534,2]
[359116332,1745713851430,-628.35,0.00017534,2]
[359116333,1745713851440,-469.64,0.00017534,2]
[359116335,1745713851451,-215.37,0.00017534,2]
[359116337,1745713851461,-400.0,0.00017534,2]
[359116339,1745713851472,-1100.88,0.00017534,2]
[359116342,1745713851482,-1313.68,0.00017534,2]
[359116344,1745713851492,-465.21,0.00017534,2]
[359116345,1745713851502,-200.0,0.00017808,2]
[359116347,1745713851512,-400.0,0.00017808,2]
[359116348,1745713851522,-400.0,0.00017808,2]
[359116350,1745713851531,-400.0,0.00017808,2]
[359116351,1745713851541,-300.0,0.00017808,2]
[359116352,1745713851551,-298.96,0.00017808,2]
[359116353,1745713851561,-400.0,0.00017808,2]
[359116354,1745713851571,-1025.32,0.00017808,2]
[359116355,1745713851581,-257.18,0.00017808,2]
[359116356,1745713851592,-400.0,0.00017808,2]
[359116357,1745713851603,-400.0,0.00017808,2]
[359116358,1745713851613,-400.0,0.00017808,2]
[359116359,1745713851623,-400.0,0.00017808,2]
[359116360,1745713851632,-493.52,0.00017808,2]
[359116361,1745713851642,-490.81,0.00017808,2]
[359116362,1745713851652,-400.0,0.00017808,2]
[359116363,1745713851661,-467.38,0.00017808,2]
[359116364,1745713851671,-400.0,0.00017808,2]
[359116365,1745713851681,-628.35,0.00017808,2]
[359116366,1745713851690,-469.64,0.00017808,2]
[359116367,1745713851700,-400.0,0.00017808,2]
[359116368,1745713851711,-1100.88,0.00017808,2]
[359116369,1745713851721,-1313.68,0.00017808,2]
[359116370,1745713851730,-465.21,0.00017808,2]
[359116371,1745713851740,-400.0,0.00018082,2]
[359116372,1745713851751,-400.0,0.00018082,2]
[359116373,1745713851761,-400.0,0.00018082,2]
[359116374,1745713851771,-400.0,0.00018082,2]
[359116375,1745713851781,-1025.32,0.00018082,2]
[359116376,1745713851791,-400.0,0.00018082,2]
[359116377,1745713851800,-400.0,0.00018082,2]
[359116378,1745713851811,-400.0,0.00018082,2]
[359116379,1745713851826,-400.0,0.00018082,2]
[359116380,1745713851836,-493.52,0.00018082,2]
[359116381,1745713851846,-490.81,0.00018082,2]
[359116382,1745713851856,-400.0,0.00018082,2]
[359116383,1745713851866,-467.38,0.00018082,2]
[359116384,1745713851880,-400.0,0.00018082,2]
[359116385,1745713851890,-628.35,0.00018082,2]
[359116386,1745713851899,-469.64,0.00018082,2]
[359116387,1745713851910,-400.0,0.00018082,2]
[359116388,1745713851920,-1100.88,0.00018082,2]
[359116389,1745713851930,-1313.68,0.00018082,2]
[359116390,1745713851940,-151.0,0.00018082,2]
[359116391,1745713851950,-465.21,0.00018082,2]
[359116392,1745713851961,-400.0,0.00018356,2]
[359116393,1745713851971,-400.0,0.00018356,2]
[359116394,1745713851981,-400.0,0.00018356,2]
[359116395,1745713851991,-400.0,0.00018356,2]
[359116396,1745713852001,-1025.32,0.00018356,2]
[359116397,1745713852011,-253.38,0.00018356,2]
[359116398,1745713852020,-400.0,0.00018356,2]
[359116399,1745713852030,-400.0,0.00018356,2]
[359116400,1745713852040,-400.0,0.00018356,2]
[359116401,1745713852050,-493.52,0.00018356,2]
[359116402,1745713852059,-490.81,0.00018356,2]
[359116403,1745713852069,-400.0,0.00018356,2]
[359116404,1745713852078,-467.38,0.00018356,2]
[359116405,1745713852088,-400.0,0.00018356,2]
[359116406,1745713852098,-628.35,0.00018356,2]
[359116407,1745713852109,-469.64,0.00018356,2]
[359116408,1745713852118,-400.0,0.00018356,2]
[359116409,1745713852129,-1100.88,0.00018356,2]
[359116410,1745713852140,-1313.68,0.00018356,2]
[359116411,1745713852150,-465.21,0.00018356,2]
[359116412,1745713852162,-179.55961179,0.00018566,2]
[359116413,1745713852172,-400.0,0.0001863,2]
[359116414,1745713852182,-400.0,0.0001863,2]
[359116415,1745713852192,-400.0,0.0001863,2]
[359116416,1745713852202,-400.0,0.0001863,2]
[359116417,1745713852212,-1025.32,0.0001863,2]
[359116418,1745713852222,-400.0,0.0001863,2]
[359116419,1745713852232,-400.0,0.0001863,2]
[359116420,1745713852242,-400.0,0.0001863,2]
[359116421,1745713852252,-493.52,0.0001863,2]
[359116422,1745713852262,-490.81,0.0001863,2]
[359116423,1745713852271,-400.0,0.0001863,2]
[359116424,1745713852281,-467.38,0.0001863,2]
[359116425,1745713852291,-400.0,0.0001863,2]
[359116426,1745713852301,-628.35,0.0001863,2]
[359116427,1745713852310,-469.64,0.0001863,2]
[359116428,1745713852320,-400.0,0.0001863,2]
[359116429,1745713852331,-1100.88,0.0001863,2]
[359116430,1745713852341,-1313.68,0.0001863,2]
[359116431,1745713852351,-465.21,0.0001863,2]
[359116432,1745713852362,-171.209,0.00018904,2]
[359116433,1745713852372,-400.0,0.00018904,2]
[359116434,1745713852382,-400.0,0.00018904,2]
[359116435,1745713852392,-400.0,0.00018904,2]
[359116436,1745713852402,-151.0,0.00018904,2]
[359116437,1745713852411,-285.08,0.00018904,2]
[359116438,1745713852421,-1025.32,0.00018904,2]
[359116439,1745713852432,-400.0,0.00018904,2]
[359116440,1745713852444,-400.0,0.00018904,2]
[359116441,1745713852454,-196.08,0.00018904,2]
[359116442,1745713852464,-493.52,0.00018904,2]
[359116443,1745713852474,-490.81,0.00018904,2]
[359116444,1745713852484,-400.0,0.00018904,2]
[359116445,1745713852494,-467.38,0.00018904,2]
[359116446,1745713852504,-400.0,0.00018904,2]
[359116447,1745713852515,-628.35,0.00018904,2]
[359116448,1745713852525,-469.64,0.00018904,2]
[359116449,1745713852534,-400.0,0.00018904,2]
[359116450,1745713852544,-1100.88,0.00018904,2]
[359116451,1745713852554,-1313.68,0.00018904,2]
[359116452,1745713852564,-465.21,0.00018904,2]
[359116453,1745713852574,-250.0,0.00019002,2]
[359116454,1745713852583,-1000.0,0.00019152,2]
[359116455,1745713852594,-813.96942755,0.00019152,2]
[359116456,1745713852604,-1000.0,0.00019152,2]
[359116457,1745713852614,-400.0,0.00019178,2]
[359116458,1745713852624,-400.0,0.00019178,2]
[359116459,1745713852634,-400.0,0.00019178,2]
[359116460,1745713852643,-151.0,0.00019178,2]
[359116461,1745713852653,-1025.32,0.00019178,2]
[359116462,1745713852663,-400.0,0.00019178,2]
[359116463,1745713852673,-400.0,0.00019178,2]
[359116464,1745713852684,-493.52,0.00019178,2]
[359116465,1745713852694,-490.81,0.00019178,2]
[359116466,1745713852703,-400.0,0.00019178,2]
[359116467,1745713852712,-467.38,0.00019178,2]
[359116468,1745713852722,-400.0,0.00019178,2]
[359116469,1745713852732,-628.35,0.00019178,2]
[359116470,1745713852742,-469.64,0.00019178,2]
[359116471,1745713852753,-400.0,0.00019178,2]
[359116472,1745713852763,-1100.88,0.00019178,2]
[359116473,1745713852772,-1313.68,0.00019178,2]
[359116474,1745713852782,-465.21,0.00019178,2]
[359116475,1745713852791,-300.0,0.00019178,2]
[359116476,1745713852801,-990.000001,0.0001918,2]
[359116477,1745713852810,-624.31479657,0.000193,2]
[359116478,1745713853017,-706.0,0.00019304,2]
[359116479,1745713853027,-545.0,0.00019304,2]
[359116480,1745713853038,-400.0,0.00019452,2]
[359116481,1745713853048,-400.0,0.00019452,2]
[359116482,1745713853058,-400.0,0.00019452,2]
[359116483,1745713853068,-1025.32,0.00019452,2]
[359116484,1745713853077,-400.0,0.00019452,2]
[359116485,1745713853087,-400.0,0.00019452,2]
[359116486,1745713853096,-493.52,0.00019452,2]
[359116487,1745713853107,-490.81,0.00019452,2]
[359116488,1745713853117,-400.0,0.00019452,2]
[359116489,1745713853126,-467.38,0.00019452,2]
[359116490,1745713853136,-400.0,0.00019452,2]
[359116491,1745713853146,-628.35,0.00019452,2]
[359116492,1745713853157,-469.64,0.00019452,2]
[359116493,1745713853166,-151.0,0.00019452,2]
[359116494,1745713853176,-400.0,0.00019452,2]
[359116495,1745713853185,-1100.88,0.00019452,2]
[359116496,1745713853194,-269.20084231,0.00019452,2]
[359116497,1745713853363,-400.0,0.00016438,2]
[359116498,1745713853374,-400.0,0.00016712,2]
[359116499,1745713853384,-400.0,0.00016986,2]
[359116500,1745713853395,-400.0,0.0001726,2]
[359116501,1745713853405,-400.0,0.00017534,2]
[359116502,1745713853415,-400.0,0.00017808,2]
[359116503,1745713853426,-400.0,0.00018082,2]
[359116504,1745713853435,-400.0,0.00018356,2]
[359116505,1745713853445,-400.0,0.0001863,2]
[359116506,1745713853455,-128.477722,0.00018904,2]
[359116507,1745713853472,-271.522278,0.00018904,2]
[359116508,1745713853483,-258.23,0.00019178,2]
[359116509,1745713853493,-1044.47915769,0.00019452,2]
[359116510,1745713853503,-465.21,0.00019452,2]
[359116511,1745713853514,-151.0,0.00019726,2]
[359116512,1745713853527,-400.0,0.00019726,2]
[359116513,1745713853537,-400.0,0.00019726,2]
[359116514,1745713853547,-400.0,0.00019726,2]
[359116515,1745713853557,-1025.32,0.00019726,2]
[359116516,1745713853567,-400.0,0.00019726,2]
[359116517,1745713853577,-400.0,0.00019726,2]
[359116518,1745713853587,-493.52,0.00019726,2]
[359116519,1745713853597,-490.81,0.00019726,2]
[359116520,1745713853609,-400.0,0.00019726,2]
[359116521,1745713853620,-467.38,0.00019726,2]
[359116522,1745713853630,-400.0,0.00019726,2]
[359116523,1745713853640,-628.35,0.00019726,2]
[359116524,1745713853650,-469.64,0.00019726,2]
[359116525,1745713853663,-400.0,0.00019726,2]
[359116526,1745713853673,-1100.88,0.00019726,2]
[359116527,1745713853683,-1313.68,0.00019726,2]
[359116528,1745713853692,-465.21,0.00019726,2]
[359116529,1745713853702,-500.0,0.00019973,2]
[359116530,1745713853712,-500.0,0.00019973,2]
[359116531,1745713853722,-500.0,0.00019973,2]
[359116532,1745713853733,-159.0,0.00019998,2]
[359116533,1745713853742,-159.0,0.00019998,2]
[359116534,1745713853752,-279.37554317,0.00019998,2]
[359116535,1745713853762,-253.30616087,0.00019998,2]
[359116536,1745713853771,-206.376384,0.00019998,2]
[359116537,1745713853781,-151.376095,0.00019998,2]
[359116538,1745713853791,-236.811491,0.00019998,2]
[359116539,1745713853802,-237.371218,0.00019998,2]
[359116540,1745713853812,-237.371218,0.00019998,2]
[359116541,1745713853822,-18952.81176203,0.00019998,2]
[359116542,1745713853833,-10000.0,0.0002,2]
[359116543,1745713853843,-72368.45905631,0.0002,2]
[359116544,1745713853853,-151.0,0.0002,2]
[359116545,1745713853863,-151.0,0.0002,2]
[359116546,1745713853874,-151.0,0.0002,2]
[359116547,1745713853890,-400.0,0.0002,2]
[359116548,1745713853906,-1414.672906,0.0002,2]
[359116549,1745713853917,-1414.672906,0.0002,2]
[359116550,1745713853927,-151.0,0.0002,2]
[359116551,1745713853940,-485.75,0.0002,2]
[359116552,1745713853952,-400.0,0.0002,2]
[359116553,1745713853962,-151.0,0.0002,2]
[359116554,1745713853974,-1025.32,0.0002,2]
[359116555,1745713853984,-441.64,0.0002,2]
[359116556,1745713853995,-400.0,0.0002,2]
[359116557,1745713854007,-493.52,0.0002,2]
[359116558,1745713854019,-490.81,0.0002,2]
[359116559,1745713854031,-400.0,0.0002,2]
[359116560,1745713854040,-228.31131737,0.0002,7]
[359116561,1745713854050,-467.38,0.0002,2]
[359116562,1745713854060,-160.0,0.0002,3]
[359116563,1745713854070,-400.0,0.0002,2]
[359116564,1745713854080,-628.35,0.0002,2]
[359116565,1745713854091,-469.64,0.0002,2]
[359116566,1745713854101,-2000.0,0.0002,4]
[359116567,1745713854111,-400.0,0.0002,2]
[359116568,1745713854121,-1100.88,0.0002,2]
[359116569,1745713854131,-1313.68,0.0002,2]
[359116570,1745713854140,-465.21,0.0002,2]
[359116571,1745713854150,-1100.0,0.00020068,2]
[359116572,1745713854160,-800.0,0.00020075,2]
[359116573,1745713854170,-800.0,0.00020118,2]
[359116574,1745713854180,-800.0,0.00020168,2]
[359116575,1745713854190,-160.0,0.000202,3]
[359116576,1745713854199,-160.0,0.000202,3]
[359116577,1745713854210,-202.4,0.000202,2]
[359116578,1745713854220,-444.16772709,0.00020273,2]
[359116579,1745713854230,-400.0,0.00020273,2]
[359116580,1745713854240,-151.0,0.00020273,2]
[359116581,1745713854250,-1025.32,0.00020273,2]
[359116582,1745713854261,-400.0,0.00020273,2]
[359116583,1745713854271,-493.52,0.00020273,2]
[359116584,1745713854281,-490.81,0.00020273,2]
[359116585,1745713854291,-400.0,0.00020273,2]
[359116586,1745713854301,-467.38,0.00020273,2]
[359116587,1745713854311,-400.0,0.00020273,2]
[359116588,1745713854321,-628.35,0.00020273,2]
[359116589,1745713854330,-469.64,0.00020273,2]
[359116590,1745713854340,-400.0,0.00020273,2]
[359116591,1745713854350,-1100.88,0.00020273,2]
[359116592,1745713854361,-1313.68,0.00020273,2]
[359116593,1745713854370,-465.21,0.00020273,2]
[359116594,1745713854381,-634.0,0.000203,2]
[359116595,1745713854391,-800.0,0.00020369,2]
[359116596,1745713854401,-400.0,0.00020547,2]
[359116597,1745713854411,-1025.32,0.00020547,2]
[359116598,1745713854423,-400.0,0.00020547,2]
[359116599,1745713854434,-493.52,0.00020547,2]
[359116600,1745713854443,-490.81,0.00020547,2]
[359116601,1745713854453,-400.0,0.00020547,2]
[359116602,1745713854463,-467.38,0.00020547,2]
[359116603,1745713854473,-400.0,0.00020547,2]
[359116604,1745713854483,-628.35,0.00020547,2]
[359116605,1745713854493,-469.64,0.00020547,2]
[359116606,1745713854503,-151.0,0.00020547,2]
[359116607,1745713854515,-400.0,0.00020547,2]
[359116608,1745713854525,-1100.88,0.00020547,2]
[359116609,1745713854535,-1313.68,0.00020547,2]
[359116610,1745713854545,-465.21,0.00020547,2]
[359116611,1745713854556,-158.29616,0.00020548,2]
[359116612,1745713854566,-281.3650986,0.0002079,2]
[359116613,1745713854576,-400.0,0.00020821,2]
[359116614,1745713854587,-1025.32,0.00020821,2]
[359116615,1745713854597,-400.0,0.00020821,2]
[359116616,1745713854607,-493.52,0.00020821,2]
[359116617,1745713854618,-490.81,0.00020821,2]
[359116618,1745713854629,-400.0,0.00020821,2]
[359116619,1745713854639,-467.38,0.00020821,2]
[359116620,1745713854650,-400.0,0.00020821,2]
[359116621,1745713854660,-628.35,0.00020821,2]
[359116622,1745713854670,-469.64,0.00020821,2]
[359116623,1745713854681,-400.0,0.00020821,2]
[359116624,1745713854691,-1100.88,0.00020821,2]
[359116625,1745713854702,-1313.68,0.00020821,2]
[359116626,1745713854712,-465.21,0.00020821,2]
[359116627,1745713854722,-600.0,0.00020822,2]
[359116628,1745713854732,-500.0,0.00020999,2]
[359116629,1745713854742,-500.0,0.00020999,2]
[359116630,1745713854753,-160.0,0.00021,3]
[359116631,1745713854763,-840.35238838,0.00021,3]
[359116632,1745713854773,-12582.09293779,0.00021,3]
[359116633,1745713854783,-160.0,0.00021,3]
[359116634,1745713854793,-2871.30552364,0.00021,2]
[359116635,1745713854803,-38989.47033956,0.00021,3]
[359116636,1745713854815,-26485.33484932,0.00021,2]
[359116637,1745713854831,-2029.42724631,0.00021,2]
[359116638,1745713854845,-187491.74203582,0.00021,2]
[359116639,1745713854856,-2318.95131688,0.00021,2]
[359116640,1745713854873,-3239.21286451,0.00021,2]
[359116641,1745713854906,-400.0,0.00016438,2]
[359116642,1745713854917,-300.0,0.00016712,2]
[359116643,1745713854927,-86.04403984,0.0002079,2]
[359116644,1745713854939,-52591.0583938,0.0002079,2]
[359116645,1745713854949,-7296.75547461,0.00021,2]
[359116646,1745713854961,-1910.87685476,0.00021,2]
[359116647,1745713859280,625.0,0.0002084,15]
[359116648,1745713901512,-164.38145421,0.00013679,2]
[359116649,1745713903371,-196.77148994,0.00013679,2]
[359116650,1745713913290,-303.22851006,0.00013679,2]
[359116651,1745713913314,-196.03296571,0.00013679,2]
[359116652,1745713913335,-0.73852423,0.00013679,2]
[359116653,1745713922948,-294.88137325,0.00013473,2]
[359116654,1745713925251,-405.11862675,0.00013473,2]
[359116655,1745713928905,-151.0,0.00013473,2]
[359116656,1745713932708,-149.0,0.00013473,2]
[359116657,1745713932732,-138.92959457,0.00013678,2]
[359116658,1745713939265,-161.07040543,0.00013678,2]
[359116659,1745713939290,-138.92959457,0.00013679,2]
[359116660,1745713944786,-155.95177868,0.00013679,2]
[359116661,1745713944812,-243.28928482,0.00013679,2]
[359116662,1745713944838,-446.92458645,0.00013679,2]
[359116664,1745713969864,-198.55245974,0.00013698,2]
[359116665,1745713980787,-135.40255539,0.00013698,2]
[359116666,1745713980812,-500.0,0.00013698,2]
[359116667,1745713980836,-164.737674,0.00013698,2]
[359116668,1745713981310,-335.262326,0.00013698,2]
[359116669,1745713981335,-464.87790339,0.00013698,2]
[359116670,1745714005960,-180.83055779,0.00013599,2]
[359116671,1745714013777,-180.83055779,0.00013599,2]
[359116672,1745714022124,-242.22395415,0.00013599,2]
[359116673,1745714025858,-16.43862623,0.00013599,2]
[359116674,1745714025882,-241.33741962,0.00013697,2]
[359116675,1745714031102,-58.66258038,0.00013697,2]
[359116676,1745714031125,-35.12209661,0.00013698,2]
[359116677,1745714031148,-70.14017861,0.00013698,2]
[359116678,1745714038483,-178.13892656,0.00013698,2]
[359116679,1745714042930,-161.16470176,0.00013697,2]
[359116680,1745714047908,-138.83529824,0.00013697,2]
[359116681,1745714047934,-119.13488359,0.00013698,2]
[359116682,1745714055797,-132.58601124,0.00013698,2]
[359116683,1745714055825,-59.69594421,0.00013698,2]
[359116684,1745714061999,-157.006,0.00013698,2]
[359116685,1745714068856,-184.32083923,0.00013597,2]
[359116686,1745714072562,-74.3683722,0.00013597,2]
[359116687,1745714072587,-106.56976533,0.00013698,2]
[359116688,1745714075722,-176.72829046,0.00013698,2]
[359116689,1745714075746,-50.91078909,0.00013698,2]
[359116690,1745714082796,-124.52313623,0.00013698,2]
[359116691,1745714082821,-83.33723261,0.00013698,2]
[359116692,1745714088313,-263.67939882,0.00013698,2]
[359116693,1745714092651,-152.98336857,0.00013698,2]
[359116694,1745714092674,-500.0,0.00013698,2]
[359116695,1745714092697,-492.53401286,0.00013698,2]
[359116696,1745714122364,-154.42080205,0.00013697,2]
[359116697,1745714134312,-85.57919795,0.00013697,2]
[359116698,1745714134339,-7.46598714,0.00013698,2]
[359116699,1745714134380,-319.16944221,0.00013698,2]
[359116700,1745714134410,-160.69637168,0.00013698,2]
[359116701,1745714134436,-254.75955636,0.00013698,2]
[359116702,1745714134463,-198.6594961,0.00013698,2]
[359116703,1745714134929,-386.33237369,0.00013698,2]
[359116704,1745714134955,-639.99767775,0.00013698,2]
[359116705,1745714135726,-500.0,0.00013698,2]
[359116706,1745714142594,-60.00232225,0.00013698,2]
[359116707,1745714142620,-165.60170372,0.00013698,2]
[359116708,1745714142644,-44.77581111,0.00013698,2]
[359116709,1745714176708,-310.03082939,0.00013698,2]
[359116710,1745714182495,-7.94158955,0.00013698,2]
[359116711,1745714182519,-153.24648052,0.00013698,2]
[359116712,1745714186840,-280.21821502,0.00013698,2]
[359116713,1745714191500,-66.53530446,0.00013698,2]
[359116714,1745714191525,-86.43801215,0.00013698,2]
[359116715,1745714196565,-280.0,0.00013698,2]
[359116716,1745714200242,-133.56198785,0.00013698,2]
[359116717,1745714200264,-133.0282655,0.00013698,2]
[359116718,1745714204553,-280.77933626,0.00013698,2]
[359116719,1745714204577,-87.49092247,0.00013698,2]
[359116720,1745714211066,-309.59164251,0.00013698,2]
[359116721,1745714213689,-102.91743502,0.00013698,2]
[359116722,1745714213713,-85.11303134,0.00013698,2]
[359116723,1745714218725,-253.29091742,0.00013698,2]
[359116724,1745714221902,-0.89967956,0.00013698,2]
[359116725,1745714221926,-243.92601633,0.00013698,2]
[359116726,1745714225150,-127.48205251,0.00013698,2]
[359116727,1745714225174,-26.93874954,0.00013698,2]